bitfinex-derivatives/quotes_BTCF0:USTF0_20210406
["timestamp","ask_amount","ask_price","bid_price","bid_amount"]
[1617727193751,0.175106,58113.0,58109.0,0.53657909]
[1617727194351,0.10725655,58110.0,58109.0,0.53657909]
[1617727194952,0.10725655,58110.0,58109.0,0.10725655]
[1617727196553,0.10725655,58110.0,58109.0,0.53723858]
[1617727200362,0.15955655,58110.0,58109.0,0.53723858]
[1617727201661,0.26319655,58110.0,58109.0,0.53723858]
[1617727202062,0.26319655,58110.0,58109.0,0.53703858]
[1617727202662,0.31439655,58110.0,58109.0,0.53703858]
[1617727203064,0.26319655,58110.0,58109.0,4.11663858]
[1617727203864,0.26319655,58110.0,58109.0,4.20826871]
[1617727204564,0.31439655,58110.0,58109.0,3.68665655]
[1617727204765,0.26319655,58110.0,58109.0,3.61575655]
[1617727204966,0.26319655,58110.0,58109.0,3.98377133]
[1617727205365,0.10725655,58110.0,58109.0,3.96557133]
[1617727205567,0.10725655,58110.0,58109.0,5.23557133]
[1617727206565,0.10725655,58110.0,58109.0,5.34282788]
[1617727206765,0.10725655,58110.0,58109.0,5.8311944]
[1617727207468,0.10725655,58110.0,58109.0,4.8311944]
[1617727208268,0.10725655,58110.0,58109.0,5.8311944]
[1617727209070,0.031946,58113.0,58109.0,5.8311944]
[1617727209573,0.031946,58113.0,58112.0,1.0]
[1617727209772,0.031946,58113.0,58112.0,1.91813718]
[1617727209972,0.031946,58113.0,58112.0,5.58783718]
[1617727210675,0.031946,58113.0,58112.0,5.67945216]
[1617727210676,0.03092806,58113.0,58112.0,5.67945216]
[1617727210873,0.03092806,58113.0,58112.0,2.27975216]
[1617727211274,0.03092806,58113.0,58112.0,4.98505216]
[1617727211674,0.03092806,58113.0,58112.0,4.89343718]
[1617727211974,0.03092806,58113.0,58112.0,4.98505096]
[1617727213775,0.03092806,58113.0,58112.0,2.27975096]
[1617727213974,0.03092806,58113.0,58112.0,1.27975096]
[1617727214576,0.13818461,58113.0,58112.0,0.69976634]
[1617727214975,0.29039461,58113.0,58112.0,1.18896629]
[1617727215575,0.29039461,58113.0,58112.0,0.69976634]
[1617727216775,0.34259461,58113.0,58112.0,0.69976634]
[1617727217776,0.29039461,58113.0,58112.0,0.69976634]
[1617727218379,0.13818461,58113.0,58112.0,0.69976634]
[1617727218977,0.13818461,58113.0,58112.0,1.69976634]
[1617727219176,0.13818461,58113.0,58112.0,1.85974634]
[1617727219977,0.13818461,58113.0,58112.0,0.85974634]
[1617727220178,0.13818461,58113.0,58112.0,1.34909455]
[1617727220377,0.13818461,58113.0,58112.0,2.34909455]
[1617727221582,0.13818461,58113.0,58112.0,1.85974634]
[1617727221981,0.13818461,58113.0,58112.0,2.34907491]
[1617727222483,0.13818461,58113.0,58112.0,1.85914634]
[1617727222882,0.13818461,58113.0,58112.0,2.44155765]
[1617727223281,0.13818461,58113.0,58112.0,2.3499347]
[1617727224085,0.13818461,58113.0,58112.0,1.3499347]
[1617727224881,0.13818461,58113.0,58112.0,0.85914634]
[1617727225082,0.13818461,58113.0,58112.0,0.69916634]
[1617727225482,0.13818461,58113.0,58112.0,2.1900928]
[1617727225881,0.13818461,58113.0,58112.0,1.69916634]
[1617727226082,0.13818461,58113.0,58112.0,0.69916634]
[1617727226283,0.13818461,58113.0,58112.0,2.19008354]
[1617727226683,0.13818461,58113.0,58112.0,1.19008354]
[1617727229589,0.13818461,58113.0,58112.0,2.19008354]
[1617727229987,0.13818461,58113.0,58112.0,1.19008354]
[1617727230388,0.13818461,58113.0,58112.0,4.55878354]
[1617727230789,0.13818461,58113.0,58112.0,4.65040583]
[1617727233192,0.13818461,58113.0,58112.0,1.28170583]
[1617727233793,0.13818461,58113.0,58112.0,0.69916634]
[1617727234195,0.13818461,58113.0,58112.0,0.42916634]
[1617727235697,0.13818461,58113.0,58112.0,0.78385339]
[1617727237598,0.13818461,58113.0,58112.0,0.42916634]
[1617727238999,0.13818461,58113.0,58106.0,0.492577]
[1617727239199,0.0513,58112.0,58106.0,0.492577]
[1617727239401,0.13818461,58113.0,58106.0,0.492577]
[1617727239601,0.13818461,58113.0,58104.0,0.49278977]
[1617727240401,0.0521,58112.0,58103.0,0.49282751]
[1617727240599,0.13818461,58113.0,58103.0,0.49282751]
[1617727240799,0.10725655,58104.0,58103.0,0.49282751]
[1617727242100,0.10725655,58104.0,58103.0,0.49262751]
[1617727242300,0.10725655,58104.0,58103.0,0.92626183]
[1617727243701,0.21036655,58104.0,58103.0,0.92626183]
[1617727243902,0.21036655,58104.0,58103.0,0.43363432]
[1617727244301,3.15086655,58104.0,58103.0,0.43363432]
[1617727245100,4.15086655,58104.0,58103.0,0.43363432]
[1617727245901,5.65086655,58104.0,58103.0,0.43363432]
[1617727246705,5.65086655,58104.0,58102.0,0.43440711]
[1617727247307,1.0,58103.0,58102.0,0.43440711]
[1617727247508,2.7,58103.0,58102.0,0.43440711]
[1617727247706,2.5,58103.0,58100.0,0.43457005]
[1617727248106,2.5,58103.0,58065.0,0.9876592]
[1617727248107,0.01024658,58102.0,58098.0,0.43481464]
[1617727248506,1.0,58101.0,58100.0,0.43461676]
[1617727248905,1.0,58101.0,58070.0,1.0]
[1617727248906,2.5,58101.0,58099.0,0.43471179]
[1617727249306,0.2518,58100.0,58099.0,0.43471179]
[1617727249707,0.2,58100.0,58099.0,0.43471179]
[1617727250107,4.0580032,58104.0,58099.0,0.43471179]
[1617727250507,1.0,58102.0,58101.0,0.43463513]
[1617727250707,1.11584,58102.0,58101.0,0.43463513]
[1617727250908,0.11584,58102.0,58101.0,0.43463513]
[1617727251309,0.11584,58102.0,58100.0,0.43463498]
[1617727251911,4.04775655,58104.0,58101.0,0.43443337]
[1617727252110,3.09915655,58104.0,58101.0,0.43443337]
[1617727252413,3.05800306,58104.0,58101.0,0.43443337]
[1617727253012,3.04775655,58104.0,58101.0,0.43443337]
[1617727253412,3.04775655,58104.0,58091.0,0.15699]
[1617727254211,3.04775655,58104.0,58088.0,0.55292603]
[1617727254413,0.10725655,58104.0,58087.0,0.55299624]
[1617727254812,0.2,58103.0,58087.0,0.55299624]
[1617727255013,0.10725655,58088.0,58087.0,0.55299624]
[1617727255213,0.10725655,58088.0,58086.0,0.55310637]
[1617727256714,0.10725655,58088.0,58082.0,0.10725655]
[1617727256715,0.10725655,58088.0,58085.0,0.55281078]
[1617727257115,0.10623826,58088.0,58087.0,0.49308152]
[1617727257916,0.10623826,58088.0,58087.0,0.84809125]
[1617727259415,3.2391,58089.0,58088.0,0.39376174]
[1617727260318,3.2391,58089.0,58088.0,1.30329334]
[1617727260917,3.34635655,58089.0,58088.0,1.30329334]
[1617727262921,3.34635655,58089.0,58088.0,1.41054989]
[1617727263322,3.34635655,58089.0,58088.0,1.30329334]
[1617727272635,3.34635655,58089.0,58088.0,1.73589159]
[1617727273138,3.34635655,58089.0,58088.0,1.67479058]
[1617727273537,3.34635655,58089.0,58088.0,1.73589274]
[1617727283949,0.10725655,58089.0,58088.0,1.73589274]
[1617727284947,0.10725655,58099.0,58088.0,1.73589274]
[1617727285549,0.10725655,58099.0,58098.0,0.78615176]
[1617727285746,0.10725655,58099.0,58098.0,0.93082176]
[1617727286448,0.10725655,58099.0,58098.0,0.99191813]
[1617727287049,0.10725655,58099.0,58098.0,1.09917468]
[1617727289852,0.15805655,58099.0,58098.0,1.09917468]
[1617727290053,0.10725655,58099.0,58098.0,1.09917468]
[1617727290253,0.10725655,58099.0,58098.0,0.95450468]
[1617727290455,0.10725655,58099.0,58098.0,0.84724813]
[1617727291258,0.10725655,58099.0,58098.0,0.78615176]
[1617727291656,0.10725655,58099.0,58098.0,0.84725088]
[1617727292256,0.10725655,58099.0,58098.0,0.78615176]
[1617727293659,0.10725655,58099.0,58098.0,0.91246176]
[1617727293862,3.42765655,58099.0,58098.0,0.91246176]
[1617727294061,3.42765655,58099.0,58098.0,0.97356046]
[1617727295358,3.47975655,58099.0,58098.0,0.97356046]
[1617727295759,3.42765655,58099.0,58098.0,0.97356046]
[1617727296561,3.42765655,58099.0,58098.0,0.84725046]
[1617727296961,3.42765655,58099.0,58098.0,0.78615176]
[1617727298764,3.42765655,58099.0,58098.0,1.28004438]
[1617727302371,3.42765655,58099.0,58098.0,1.34114303]
[1617727305173,3.42765655,58099.0,58098.0,1.44839958]
[1617727307575,3.42765655,58099.0,58098.0,1.42299958]
[1617727308078,3.43793198,58099.0,58098.0,1.42299958]
[1617727308478,3.42765655,58099.0,58098.0,1.42299958]
[1617727308877,3.43793204,58099.0,58098.0,1.42299958]
[1617727309479,3.57053655,58099.0,58098.0,1.42299958]
[1617727309881,3.58081196,58099.0,58098.0,1.42299958]
[1617727311882,3.43793196,58099.0,58098.0,1.42299958]
[1617727315086,3.43793196,58099.0,58098.0,1.55615958]
[1617727316888,3.43793196,58099.0,58098.0,1.42299958]
[1617727317992,3.43793196,58099.0,58098.0,1.03353264]
[1617727321296,3.73300156,58099.0,58098.0,1.03353264]
[1617727321699,3.43793302,58099.0,58098.0,1.03353264]
[1617727323198,3.42765655,58099.0,58098.0,0.10725655]
[1617727323598,3.43793302,58099.0,58098.0,1.03535205]
[1617727323998,3.42765655,58099.0,58098.0,1.03535205]
[1617727324998,0.10725655,58099.0,58098.0,1.03535205]
[1617727331201,0.10725655,58099.0,58098.0,4.42685205]
[1617727331803,0.10725655,58099.0,58098.0,4.51850043]
[1617727332606,0.10725655,58099.0,58098.0,1.12700043]
[1617727332807,0.10725655,58099.0,58098.0,1.48295131]
[1617727333207,0.10725655,58099.0,58098.0,1.39130293]
[1617727338413,0.10725655,58099.0,58098.0,1.03535205]
[1617727339317,0.10725655,58099.0,58098.0,1.03105205]
[1617727344522,0.01027662,58100.0,58098.0,3.71395205]
[1617727344723,0.01027627,58102.0,58098.0,4.71395205]
[1617727344923,0.01027627,58102.0,58099.0,1.0]
[1617727345125,0.01027461,58106.0,58101.0,1.92956299]
[1617727345324,0.01027461,58106.0,58105.0,0.10725655]
[1617727345525,0.0102743,58108.0,58105.0,1.17994434]
[1617727345927,0.0102743,58108.0,58107.0,0.9291317]
[1617727346525,0.46447411,58109.0,58107.0,0.9291317]
[1617727346927,0.46447411,58109.0,58108.0,1.92894829]
[1617727347128,0.51577411,58109.0,58108.0,1.92894829]
[1617727347327,0.46447411,58109.0,58108.0,2.19894829]
[1617727347529,0.4542,58109.0,58108.0,2.19894829]
[1617727348534,0.04120188,58112.0,58108.0,1.19894829]
[1617727348732,0.04120188,58112.0,58108.0,1.25014829]
[1617727348932,0.04120188,58112.0,58111.0,3.6445636]
[1617727349134,0.04120188,58112.0,58111.0,4.6445636]
[1617727349335,0.03092806,58112.0,58111.0,5.46708709]
[1617727349533,0.03092806,58112.0,58111.0,5.57434364]
[1617727349735,0.03092806,58112.0,58111.0,5.66596321]
[1617727350135,0.02991008,58112.0,58111.0,4.80848049]
[1617727350334,0.02991008,58112.0,58111.0,6.00848049]
[1617727350535,0.02991008,58112.0,58111.0,5.86596321]
[1617727350934,0.02991008,58112.0,58111.0,6.00847855]
[1617727352736,0.02991008,58112.0,58111.0,5.80847855]
[1617727355040,0.02991008,58112.0,58111.0,6.00847855]
[1617727356144,0.02991008,58112.0,58111.0,5.45595506]
[1617727357547,0.02991008,58112.0,58111.0,4.45595506]
[1617727357747,0.02991008,58112.0,58111.0,5.45595506]
[1617727358147,0.02991008,58112.0,58111.0,5.31343972]
[1617727358547,0.02991008,58112.0,58111.0,5.80965036]
[1617727359148,0.02991008,58112.0,58111.0,4.6671508]
[1617727359348,0.02991008,58112.0,58111.0,5.6671508]
[1617727359950,0.02991008,58112.0,58111.0,5.80965296]
[1617727360449,0.0288922,58112.0,58111.0,5.80965296]
[1617727362655,0.0288922,58112.0,58111.0,4.80965296]
[1617727362853,0.0288922,58112.0,58111.0,5.60965296]
[1617727363053,0.0288922,58112.0,58111.0,2.89375296]
[1617727363255,0.0288922,58112.0,58111.0,2.7512508]
[1617727363455,0.0288922,58112.0,58111.0,2.65963123]
[1617727367559,0.0288922,58112.0,58111.0,1.65963123]
[1617727367760,0.0288922,58112.0,58111.0,2.65963123]
[1617727367960,0.0288922,58112.0,58111.0,5.81463123]
[1617727368561,0.0288922,58112.0,58111.0,6.04873861]
[1617727370665,0.02787435,58112.0,58111.0,6.04873861]
[1617727370865,0.02787435,58112.0,58111.0,5.04873861]
[1617727371065,0.02787435,58112.0,58111.0,6.04873861]
[1617727374172,0.02787435,58112.0,58111.0,6.59800584]
[1617727375274,0.02787435,58112.0,58111.0,4.53225655]
[1617727375674,0.02787435,58112.0,58111.0,6.35632238]
[1617727375873,0.02787435,58112.0,58111.0,6.55632238]
[1617727379982,0.02787435,58112.0,58111.0,6.8503694]
[1617727380985,0.02685662,58112.0,58111.0,6.8503694]
[1617727384187,0.02685662,58112.0,58111.0,6.3660794]
[1617727385090,0.02685662,58112.0,58111.0,6.50856524]
[1617727385991,0.02685662,58112.0,58111.0,6.56026524]
[1617727386189,0.02685662,58112.0,58111.0,6.50856524]
[1617727387191,0.02685662,58112.0,58111.0,6.35825524]
[1617727387790,0.02685662,58112.0,58111.0,6.2157694]
[1617727388192,0.02685662,58112.0,58111.0,6.35825259]
[1617727388592,0.02685662,58112.0,58111.0,6.2157694]
[1617727389793,0.04333518,58132.0,58111.0,6.2157694]
[1617727389992,0.4852,58134.0,58111.0,6.2157694]
[1617727389993,0.43777365,58134.0,58111.0,6.2157694]
[1617727390194,0.43777365,58134.0,58131.0,1.0]
[1617727390592,0.43777365,58134.0,58133.0,1.07771529]
[1617727390994,0.43777365,58134.0,58133.0,1.40877829]
[1617727391894,0.43777365,58134.0,58133.0,1.51603484]
[1617727393600,0.43777365,58134.0,58133.0,2.00645601]
[1617727399501,0.56735365,58134.0,58133.0,2.00645601]
[1617727399704,4.27225365,58134.0,58133.0,1.13877829]
[1617727399904,5.27225365,58134.0,58133.0,1.13877829]
[1617727400103,5.27225365,58134.0,58133.0,1.07771529]
[1617727400604,5.27225365,58134.0,58133.0,0.70769767]
[1617727400815,4.27225365,58134.0,58133.0,0.70769767]
[1617727401011,4.27225365,58134.0,58133.0,0.64662917]
[1617727404020,4.27225365,58134.0,58133.0,0.75388572]
[1617727404621,4.27225365,58134.0,58133.0,1.24786716]
[1617727405212,4.27225365,58134.0,58133.0,1.74133932]
[1617727406813,4.27225365,58134.0,58133.0,1.44741697]
[1617727407014,4.27225365,58134.0,58133.0,0.95394481]
[1617727407417,4.32435365,58134.0,58133.0,0.95394481]
[1617727407615,4.27225365,58134.0,58133.0,0.95394481]
[1617727408418,4.27225365,58134.0,58133.0,0.10725655]
[1617727408918,4.27225365,58134.0,58133.0,0.88925139]
[1617727409117,4.27225365,58134.0,58133.0,0.86885139]
[1617727409818,4.5767369,58134.0,58133.0,0.43363923]
[1617727410019,4.5767369,58134.0,58133.0,0.35608268]
[1617727410818,0.8718369,58134.0,58133.0,0.35608268]
[1617727411219,0.56735365,58134.0,58133.0,0.35608268]
[1617727411420,0.43777365,58134.0,58133.0,0.35608268]
[1617727411921,0.74225775,58134.0,58133.0,0.35608268]
[1617727412322,0.43777365,58134.0,58133.0,0.35608268]
[1617727414724,0.43777365,58134.0,58133.0,0.79125164]
[1617727416323,0.43777365,58134.0,58133.0,0.78435164]
[1617727416525,0.43777365,58134.0,58133.0,0.83862023]
[1617727416826,0.43777365,58134.0,58133.0,0.77755164]
[1617727419630,0.7424233,58134.0,58133.0,0.77755164]
[1617727423534,0.7424233,58134.0,58133.0,0.73785164]
[1617727423935,0.7424233,58134.0,58133.0,0.72255164]
[1617727424133,0.7424233,58134.0,58133.0,0.7836217]
[1617727424333,0.7424233,58134.0,58133.0,0.72255164]
[1617727424833,1.7424233,58134.0,58133.0,0.72255164]
[1617727425333,1.7424233,58134.0,58133.0,0.28738268]
[1617727425534,0.7424233,58134.0,58133.0,0.28738268]
[1617727425735,0.7424233,58134.0,58133.0,0.78492678]
[1617727426034,0.7424233,58134.0,58133.0,0.72385617]
[1617727426634,1.7424233,58134.0,58133.0,0.72385617]
[1617727427035,0.7424233,58134.0,58133.0,0.72385617]
[1617727429838,1.7424233,58134.0,58133.0,0.72385617]
[1617727430039,1.7424233,58134.0,58133.0,0.69725617]
[1617727430740,0.7424233,58134.0,58133.0,0.69725617]
[1617727432542,3.9867233,58134.0,58133.0,0.69725617]
[1617727433144,5.4867233,58134.0,58133.0,0.69725617]
[1617727433742,6.4867233,58134.0,58133.0,0.69725617]
[1617727435445,4.9867233,58134.0,58133.0,0.69725617]
[1617727435845,0.7424233,58134.0,58133.0,0.69725617]
[1617727436446,2.2424233,58134.0,58133.0,0.69725617]
[1617727436646,3.2424233,58134.0,58133.0,0.69725617]
[1617727437747,3.2424233,58134.0,58133.0,0.26078268]
[1617727438151,1.7424233,58134.0,58133.0,0.26078268]
[1617727438352,0.7424233,58134.0,58133.0,0.69737911]
[1617727438651,1.7424233,58134.0,58133.0,0.26078268]
[1617727439050,0.7424233,58134.0,58133.0,0.26078268]
[1617727439851,1.7424233,58134.0,58133.0,0.26078268]
[1617727440754,1.7424233,58134.0,58133.0,0.39913268]
[1617727440956,1.7424233,58134.0,58133.0,0.83443232]
[1617727441356,1.7424233,58134.0,58133.0,0.89550244]
[1617727442556,0.7424233,58134.0,58133.0,0.89550244]
[1617727443158,0.7424233,58134.0,58133.0,0.4602028]
[1617727443359,0.7424233,58134.0,58133.0,0.3218528]
[1617727443961,0.7424233,58134.0,58133.0,0.26078268]
[1617727444659,1.7424233,58134.0,58133.0,0.26078268]
[1617727445559,0.7424233,58134.0,58133.0,0.26078268]
[1617727445761,1.7424233,58134.0,58133.0,0.26078268]
[1617727446461,0.7424233,58134.0,58133.0,0.26078268]
[1617727447663,0.7424233,58134.0,58133.0,0.23998268]
[1617727448065,0.7424233,58134.0,58133.0,0.30105352]
[1617727448466,0.7424233,58134.0,58133.0,0.67571646]
[1617727450167,0.43777365,58134.0,58133.0,0.67571646]
[1617727452572,1.93777365,58134.0,58133.0,0.67571646]
[1617727452771,2.93777365,58134.0,58133.0,0.67571646]
[1617727453071,6.08147365,58134.0,58133.0,0.67571646]
[1617727453272,6.38614048,58134.0,58133.0,0.67571646]
[1617727453871,3.24244048,58134.0,58133.0,0.67571646]
[1617727454074,3.24244048,58134.0,58133.0,3.69311646]
[1617727454674,3.24244048,58134.0,58133.0,0.82839126]
[1617727454873,6.04266048,58134.0,58133.0,0.82839126]
[1617727455074,6.04266048,58134.0,58133.0,0.3010526]
[1617727455075,7.04266048,58134.0,58133.0,0.3010526]
[1617727455475,7.04266048,58134.0,58133.0,0.23998268]
[1617727456278,7.24266048,58134.0,58128.0,0.43641925]
[1617727456476,0.0508,58133.0,58128.0,0.20091925]
[1617727456675,1.30532198,58129.0,58123.0,0.49715824]
[1617727456876,1.5,58128.0,58123.0,0.47085824]
[1617727457076,1.74431563,58128.0,58123.0,0.47085824]
[1617727457276,0.30533254,58124.0,58113.0,0.10725655]
[1617727457678,0.30533607,58118.0,58113.0,0.10725655]
[1617727457877,0.44350607,58118.0,58113.0,0.10725655]
[1617727458079,0.13817,58118.0,58113.0,0.10725655]
[1617727458277,0.10725655,58114.0,58113.0,0.10725655]
[1617727462185,0.10725655,58114.0,58106.0,0.55595713]
[1617727462388,3.79425655,58107.0,58106.0,0.10725655]
[1617727465288,0.10725655,58107.0,58106.0,0.10725655]
[1617727470994,0.10725655,58107.0,58106.0,0.21153655]
[1617727472296,0.10725655,58107.0,58106.0,0.70722944]
[1617727476100,0.10725655,58107.0,58106.0,0.21153655]
[1617727476302,0.10725655,58107.0,58106.0,0.10725655]
[1617727476901,0.10725655,58107.0,58106.0,0.54313228]
[1617727477301,1.10725655,58107.0,58106.0,0.54313228]
[1617727481101,1.10725655,58107.0,58106.0,0.52753228]
[1617727481303,1.10725655,58107.0,58106.0,0.46653228]
[1617727481503,1.10725655,58107.0,58106.0,0.44113228]
[1617727482303,0.10725655,58107.0,58106.0,0.44113228]
[1617727482503,0.10725655,58107.0,58106.0,0.43587573]
[1617727483203,1.10725655,58107.0,58106.0,0.43587573]
[1617727483604,1.22182655,58107.0,58106.0,0.31327573]
[1617727485106,1.10725655,58107.0,58106.0,0.31327573]
[1617727487709,1.10725655,58107.0,58100.0,0.10725655]
[1617727488311,1.10725655,58107.0,58102.0,0.49568931]
[1617727489213,0.10725655,58107.0,58102.0,0.49568931]
[1617727491114,0.10725655,58107.0,58103.0,0.49508667]
[1617727493818,0.10725655,58107.0,58103.0,0.59397667]
[1617727494017,0.0515,58106.0,58103.0,0.59397667]
[1617727494219,0.10725655,58107.0,58103.0,0.59397667]
[1617727494418,1.10725655,58107.0,58103.0,0.59397667]
[1617727494818,1.0,58105.0,58103.0,0.59397667]
[1617727495019,1.0,58105.0,58101.0,0.49545488]
[1617727495920,1.0,58103.0,58101.0,0.49545488]
[1617727496120,3.5759,58102.0,58101.0,0.49545488]
[1617727496519,4.5759,58102.0,58101.0,0.49545488]
[1617727496921,6.0759,58102.0,58101.0,0.42675488]
[1617727497121,6.0759,58102.0,58088.0,0.94969786]
[1617727497320,6.0759,58102.0,58088.0,0.87989786]
[1617727497521,6.0759,58102.0,58088.0,0.31506174]
[1617727498322,1.0,58089.0,58088.0,0.31506174]
[1617727498522,1.21883655,58089.0,58088.0,0.31506174]
[1617727498721,0.21883655,58089.0,58088.0,0.31506174]
[1617727498924,1.21883655,58089.0,58088.0,0.31316174]
[1617727499123,0.21883655,58089.0,58088.0,0.31316174]
[1617727499522,0.10725655,58089.0,58088.0,0.31316174]
[1617727499923,3.2811,58086.0,58085.0,0.55642805]
[1617727500123,3.2811,58086.0,58072.0,0.69602666]
[1617727500124,4.9811,58086.0,58072.0,0.69602666]
[1617727500522,0.10725655,58073.0,58072.0,0.57462666]
[1617727500724,0.23890655,58073.0,58056.0,0.10725655]
[1617727500923,1.23890655,58073.0,58056.0,0.10725655]
[1617727501325,1.0,58070.0,58056.0,0.10725655]
[1617727501527,1.0,58070.0,58057.0,0.27]
[1617727502029,1.0,58069.0,58057.0,0.27]
[1617727502425,0.10725655,58058.0,58057.0,0.27]
[1617727503425,0.1062379,58058.0,58057.0,0.27]
[1617727504027,3.5829379,58058.0,58056.0,0.10725655]
[1617727504228,3.5829379,58058.0,58052.0,0.09167784]
[1617727504728,3.5829379,58058.0,58048.0,0.87977502]
[1617727505129,3.5829379,58058.0,58047.0,0.10725655]
[1617727505530,3.5829379,58058.0,58049.0,0.27]
[1617727505729,3.5829379,58058.0,58048.0,0.27]
[1617727505930,1.0,58057.0,58047.0,0.10725655]
[1617727506130,1.5,58057.0,58032.0,0.09168944]
[1617727506331,3.7189,58038.0,58032.0,0.09168944]
[1617727506530,3.7189,58038.0,58030.0,0.87473366]
[1617727506531,3.87051,58038.0,58034.0,0.10725655]
[1617727507531,3.87051,58038.0,58035.0,0.26]
[1617727508131,1.0,58043.0,58035.0,0.26]
[1617727508331,1.0,58052.0,58035.0,0.26]
[1617727508533,1.0,58053.0,58041.0,0.10725655]
[1617727508732,1.0,58054.0,58041.0,0.10725655]
[1617727508937,1.0,58052.0,58041.0,0.10725655]
[1617727509336,3.2087,58055.0,58041.0,0.10725655]
[1617727509337,1.0,58053.0,58041.0,0.10725655]
[1617727509536,3.2087,58055.0,58041.0,0.10725655]
[1617727510538,0.10725655,58042.0,58041.0,0.10725655]
[1617727513244,1.0,58061.0,58041.0,0.10725655]
[1617727513446,0.76003589,58068.0,58041.0,0.10725655]
[1617727513447,0.76003589,58068.0,58041.0,1.71547893]
[1617727513645,0.457,58068.0,58051.0,3.855]
[1617727513846,0.457,58068.0,58052.0,0.09169071]
[1617727514045,0.457,58068.0,58053.0,1.0]
[1617727514245,0.457,58068.0,58054.0,1.0]
[1617727514445,0.457,58068.0,58054.0,1.27]
[1617727514647,0.457,58068.0,58067.0,0.10725655]
[1617727514848,0.4721,58069.0,58067.0,0.24302655]
[1617727519655,0.4721,58069.0,58068.0,0.2]
[1617727519854,0.4721,58069.0,58068.0,3.1125]
[1617727520057,0.4721,58069.0,58068.0,4.3825]
[1617727521257,0.10725655,58082.0,58068.0,4.3825]
[1617727521659,0.10725655,58082.0,58080.0,1.0]
[1617727521858,0.10725655,58082.0,58081.0,0.2]
[1617727522060,0.10725655,58082.0,58081.0,1.47]
[1617727522258,0.10725655,58082.0,58081.0,3.1367]
[1617727522661,0.10725655,58082.0,58081.0,4.24395655]
[1617727524261,0.4691,58095.0,58081.0,4.24395655]
[1617727524665,0.4691,58095.0,58094.0,0.10725655]
[1617727524863,0.051,58102.0,58094.0,0.26846655]
[1617727525664,0.30259199,58104.0,58094.0,0.26846655]
[1617727526064,0.30258786,58105.0,58094.0,0.26846655]
[1617727526665,0.35358786,58105.0,58100.0,0.10725655]
[1617727526864,0.051,58105.0,58100.0,0.10725655]
[1617727528564,0.10725655,58101.0,58100.0,0.10725655]
[1617727534574,0.10725655,58101.0,58094.0,0.16121]
[1617727534776,0.10725655,58101.0,58092.0,0.10725655]
[1617727535377,0.10725655,58101.0,58093.0,0.27]
[1617727535576,0.10725655,58101.0,58093.0,0.40288]
[1617727535977,3.1912,58098.0,58093.0,0.40288]
[1617727536677,0.10725655,58094.0,58093.0,0.40288]
[1617727540779,0.10725655,58094.0,58093.0,0.37528]
[1617727541181,1.10725655,58094.0,58077.0,0.49718017]
[1617727541384,3.73205655,58094.0,58074.0,0.49741102]
[1617727541878,3.73205655,58094.0,58075.0,0.27]
[1617727542479,3.73205655,58094.0,58069.0,0.49827862]
[1617727542678,3.6248,58094.0,58079.0,0.10725655]
[1617727543079,2.6248,58094.0,58079.0,0.10725655]
[1617727543280,3.6248,58094.0,58079.0,0.24751655]
[1617727543479,2.6248,58094.0,58079.0,0.24751655]
[1617727544779,0.10725655,58080.0,58079.0,0.24751655]
[1617727545681,0.10725655,58080.0,58079.0,0.10725655]
[1617727551289,0.10725655,58080.0,58079.0,0.21127655]
[1617727553792,0.10725655,58080.0,58079.0,0.26227655]
[1617727553990,0.10725655,58080.0,58079.0,0.21127655]
[1617727554190,0.10725655,58080.0,58079.0,0.48127655]
[1617727554393,0.10725655,58080.0,58079.0,0.68127655]
[1617727554790,0.10725655,58080.0,58079.0,1.18043296]
[1617727555391,3.1619,58094.0,58079.0,1.18043296]
[1617727555592,0.30384314,58097.0,58079.0,2.18043296]
[1617727555794,0.30384314,58097.0,58093.0,3.612]
[1617727555991,0.30384314,58097.0,58093.0,3.75901]
[1617727556195,0.30384406,58098.0,58093.0,3.75901]
[1617727556592,0.36459263,58101.0,58093.0,3.75901]
[1617727556593,0.35554008,58099.0,58093.0,3.75901]
[1617727556793,0.10725655,58094.0,58093.0,3.75901]
[1617727557195,0.10725655,58094.0,58093.0,0.14701]
[1617727560394,0.30390564,58098.0,58093.0,0.14701]
[1617727560797,0.30390564,58098.0,58097.0,0.10725655]
[1617727560998,0.30387701,58107.0,58097.0,4.67935655]
[1617727561200,0.30387701,58107.0,58097.0,4.94935655]
[1617727561398,0.30384782,58114.0,58103.0,0.43823035]
[1617727561598,0.30384782,58114.0,58104.0,0.2]
[1617727561799,0.10725655,58116.0,58107.0,0.43786303]
[1617727561999,0.10725655,58116.0,58113.0,1.0]
[1617727562398,0.10725655,58116.0,58114.0,0.01]
[1617727562798,0.10725655,58116.0,58115.0,0.10725655]
[1617727563199,0.10725655,58116.0,58115.0,0.37725655]
[1617727572807,0.0519,58120.0,58115.0,0.81453713]
[1617727573708,0.0519,58120.0,58116.0,0.43716771]
[1617727574008,0.305177,58119.0,58115.0,0.37725655]
[1617727574208,0.305177,58119.0,58117.0,0.27]
[1617727574409,0.305177,58119.0,58118.0,0.93832045]
[1617727574809,0.67137248,58119.0,58118.0,0.70921383]
[1617727575008,0.67137248,58119.0,58118.0,0.43921383]
[1617727575211,0.305177,58119.0,58118.0,0.93844659]
[1617727575408,0.305177,58119.0,58118.0,1.20844659]
[1617727575609,0.356377,58119.0,58118.0,1.20844659]
[1617727575809,0.10725655,58122.0,58118.0,0.27]
[1617727576209,0.10725655,58122.0,58116.0,0.27]
[1617727576609,0.10725655,58122.0,58119.0,0.27]
[1617727576809,0.10725655,58122.0,58119.0,0.10765]
[1617727577009,0.10725655,58122.0,58121.0,0.10725655]
[1617727580214,0.0523,58127.0,58121.0,0.10725655]
[1617727581215,0.0523,58127.0,58126.0,1.0]
[1617727581414,0.3036026,58129.0,58126.0,1.0]
[1617727581615,0.4746,58142.0,58128.0,3.7046]
[1617727581616,0.30357447,58136.0,58128.0,3.7046]
[1617727581814,0.30357447,58136.0,58128.0,4.7046]
[1617727582015,0.30337447,58136.0,58129.0,0.01]
[1617727582215,0.4746,58142.0,58133.0,1.0]
[1617727582216,0.3035556,58138.0,58133.0,1.0]
[1617727582415,0.3035556,58138.0,58134.0,1.0]
[1617727582615,0.83884613,58142.0,58134.0,1.27]
[1617727582814,0.83884613,58142.0,58134.0,0.27]
[1617727583019,0.44516723,58147.0,58141.0,0.10725655]
[1617727583020,0.47150168,58143.0,58141.0,0.10725655]
[1617727583617,0.10725655,58143.0,58141.0,0.10725655]
[1617727601935,0.10705655,58143.0,58141.0,0.10725655]
[1617727603337,0.10705655,58143.0,58142.0,1.0]
[1617727603938,0.10705655,58143.0,58141.0,0.10725655]
[1617727612250,0.15835655,58143.0,58141.0,0.10725655]
[1617727612652,0.10705655,58143.0,58141.0,0.10725655]
[1617727617255,0.10705655,58143.0,58141.0,0.24532655]